bitfinex/quotes_BTCUSD_20251114
["timestamp","ask_amount","ask_price","bid_price","bid_amount"]
[1763155558456,0.08424,95121.0,95120.0,0.02891616]
[1763155559540,0.08424,95121.0,95120.0,0.001]
[1763155559772,0.08424,95121.0,95119.0,0.1250069]
[1763155560112,0.08424,95121.0,95119.0,0.1260069]
[1763155561761,0.38256,95120.0,95119.0,0.1260069]
[1763155563071,0.38256,95120.0,95119.0,0.1250069]
[1763155564929,0.1438,95120.0,95119.0,0.1250069]
[1763155565343,0.1448,95120.0,95119.0,0.1250069]
[1763155565977,0.1438,95120.0,95119.0,0.1250069]
[1763155566397,0.1448,95120.0,95119.0,0.1250069]
[1763155566626,0.1438,95120.0,95119.0,0.1250069]
[1763155567060,0.1448,95120.0,95119.0,0.1250069]
[1763155568531,0.19908459,95120.0,95119.0,0.1250069]
[1763155571199,0.19808459,95120.0,95119.0,0.1250069]
[1763155571581,0.19808459,95120.0,95119.0,0.07812931]
[1763155571582,0.10074122,95120.0,95119.0,0.07812931]
[1763155571808,0.19440942,95120.0,95119.0,0.07812931]
[1763155572215,0.19440942,95120.0,95117.0,0.00047556]
[1763155572536,0.4,95100.0,95091.0,0.00285265]
[1763155572738,0.15140428,95092.0,95091.0,0.00309215]
[1763155572948,0.21346428,95092.0,95091.0,0.00309215]
[1763155573118,0.24346181,95092.0,95091.0,0.00309215]
[1763155573534,0.53646428,95092.0,95091.0,0.00309215]
[1763155576842,0.323,95089.0,95067.0,0.01866092]
[1763155577030,0.04571,95068.0,95067.0,0.00014211]
[1763155577240,0.10777,95068.0,95067.0,0.00014211]
[1763155577583,0.10777,95068.0,95067.0,0.00185198]
[1763155580302,0.04571,95068.0,95067.0,0.00185198]
[1763155581727,0.10777,95068.0,95067.0,0.00185198]
[1763155581938,0.16141643,95068.0,95067.0,0.00185198]
[1763155582159,0.48441643,95068.0,95067.0,0.00185198]
[1763155583564,0.56869643,95068.0,95067.0,0.00185198]
[1763155584784,0.58520235,95068.0,95067.0,0.00185198]
[1763155585376,0.53155592,95068.0,95067.0,0.00185198]
[1763155587391,0.42378592,95068.0,95067.0,0.00185198]
[1763155587598,0.48584592,95068.0,95067.0,0.00185198]
[1763155588063,0.42378592,95068.0,95067.0,0.00185198]
[1763155589819,0.33950592,95068.0,95067.0,0.00185198]
[1763155590029,0.40728,95068.0,95067.0,0.00185198]
[1763155590244,0.40668954,95068.0,95067.0,0.00185198]
[1763155593023,0.46465954,95068.0,95067.0,0.00185198]
[1763155593762,0.40668954,95068.0,95067.0,0.00185198]
[1763155597484,0.46465954,95068.0,95067.0,0.00185198]
[1763155598097,0.49994169,95068.0,95067.0,0.00185198]
[1763155598713,0.51964547,95068.0,95067.0,0.00185198]
[1763155599471,0.48436332,95068.0,95067.0,0.00185198]
[1763155600099,0.48819558,95068.0,95067.0,0.00185198]
[1763155600299,0.53161432,95068.0,95067.0,0.00185198]
[1763155600502,0.323,95059.0,95040.0,0.0004]
[1763155600767,0.48666428,95051.0,95050.0,0.01303956]
[1763155601504,0.50637999,95051.0,95050.0,0.01303956]
[1763155601931,0.50637999,95051.0,95050.0,0.01350828]
[1763155602575,0.51021241,95051.0,95050.0,0.01350828]
[1763155602791,0.56966165,95051.0,95050.0,0.01350828]
[1763155603274,0.323,95049.0,95040.0,0.0004]
[1763155603477,0.04352,95041.0,95040.0,0.00044747]
[1763155603707,0.45091252,95041.0,95040.0,0.00044747]
[1763155603881,0.46742267,95041.0,95040.0,0.00044747]
[1763155604213,0.46742267,95041.0,95040.0,0.00072324]
[1763155604576,0.46842267,95041.0,95040.0,0.00072324]
[1763155604950,0.45291252,95041.0,95040.0,0.00072324]
[1763155605162,0.44620571,95041.0,95040.0,0.00072324]
[1763155606175,0.42649,95041.0,95040.0,0.00072324]
[1763155606432,0.44517545,95041.0,95040.0,0.00072324]
[1763155606782,0.44417545,95041.0,95040.0,0.00072324]
[1763155607179,0.42549,95041.0,95040.0,0.00072324]
[1763155607433,0.001,95041.0,95040.0,0.00072324]
[1763155608192,0.05897,95041.0,95040.0,0.00072324]
[1763155608912,0.05797,95041.0,95040.0,0.00072324]
[1763155609158,0.05797,95041.0,95040.0,0.00172324]
[1763155609324,0.05797,95041.0,95040.0,0.00072324]
[1763155609525,0.05797,95041.0,95040.0,0.00172324]
[1763155609526,0.063767,95041.0,95040.0,0.00172324]
[1763155609942,0.063767,95041.0,95040.0,0.00072324]
[1763155610568,0.08027649,95041.0,95040.0,0.00072324]
[1763155610767,0.16459649,95041.0,95040.0,0.00072324]
[1763155613275,0.15879949,95041.0,95040.0,0.00072324]
[1763155613780,0.48179949,95041.0,95040.0,0.00072324]
[1763155614979,0.50147735,95041.0,95040.0,0.00072324]
[1763155615969,0.50247735,95041.0,95040.0,0.00072324]
[1763155617220,0.50247735,95041.0,95007.0,0.11433]
[1763155617221,0.00999999,95030.0,94995.0,0.02802617]
[1763155617450,0.42449,95001.0,95000.0,0.00085184]
[1763155617684,0.44415542,95001.0,95000.0,0.00085184]
[1763155617894,0.4758009,95001.0,95000.0,0.00085184]
[1763155618096,0.42449,95001.0,95000.0,0.00085184]
[1763155618303,0.48186043,95001.0,95000.0,0.00085184]
[1763155618635,0.48286043,95001.0,95000.0,0.00085184]
[1763155618841,0.42549,95001.0,95000.0,0.00085184]
[1763155619417,0.4441269,95001.0,95000.0,0.00085184]
[1763155620173,0.49233587,95001.0,95000.0,0.00085184]
[1763155620757,0.36641874,94989.0,94960.0,0.0004]
[1763155620960,0.48957302,94981.0,94980.0,0.00049249]
[1763155621178,0.50920992,94981.0,94980.0,2.49e-06]
[1763155621367,0.78641872,94980.0,94960.0,0.0004]
[1763155621582,0.46703874,94971.0,94970.0,0.00070944]
[1763155621783,0.48665707,94971.0,94970.0,0.00070944]
[1763155621982,0.42362,94971.0,94970.0,0.00070944]
[1763155622384,0.36495,94971.0,94970.0,0.00070944]
[1763155622772,0.04195,94979.0,94970.0,0.00070944]
[1763155622976,0.001,94971.0,94970.0,0.00070944]
[1763155623175,0.002,94971.0,94970.0,0.00070944]
[1763155623378,0.002,94971.0,94970.0,0.00264137]
[1763155623584,0.001,94971.0,94970.0,0.09370137]
[1763155624598,0.95299876,95000.0,94976.0,0.02245]
[1763155624801,0.95299876,95000.0,94999.0,0.07877]
[1763155625008,0.04195,95018.0,94999.0,0.07877]
[1763155625009,0.95299876,95009.0,94999.0,0.07877]
[1763155626075,0.95299876,95009.0,94999.0,0.08007944]
[1763155626493,0.10366938,95007.0,94999.0,0.08007944]
[1763155626699,0.95299876,95009.0,94999.0,0.08007944]
[1763155627577,0.95299876,95009.0,94999.0,0.07907944]
[1763155627983,0.01651724,95006.0,94999.0,0.07907944]
[1763155628408,0.01651724,95006.0,95000.0,0.09106]
[1763155630529,0.01651724,95006.0,95000.0,0.09206]
[1763155630737,0.08436,95005.0,95000.0,0.09206]
[1763155631176,0.08436,95005.0,95000.0,0.001]
[1763155631177,0.09873,95001.0,95000.0,0.001]
[1763155631423,0.09873,95001.0,94999.0,0.00030944]
[1763155631650,0.03313,95000.0,94999.0,0.00030944]
[1763155632323,0.04184,95001.0,94999.0,0.00030944]
[1763155632548,0.04184,95001.0,95000.0,0.001]
[1763155632819,0.04184,95001.0,94999.0,0.00030944]
[1763155633039,0.36484,95004.0,94999.0,0.00030944]
[1763155633258,0.09873,95000.0,94999.0,0.00030944]
[1763155633467,0.09873,95000.0,94984.0,0.02127831]
[1763155633700,0.10569428,94993.0,94984.0,0.02141379]
[1763155634365,0.01651911,94997.0,94984.0,0.02141379]
[1763155634573,0.10569428,94993.0,94984.0,0.02141379]
[1763155635450,0.10569428,94993.0,94984.0,0.02241379]
[1763155635669,0.10569428,94993.0,94992.0,0.02262]
[1763155635883,0.10569428,94993.0,94992.0,0.02394444]
[1763155637642,0.10569428,94993.0,94992.0,0.02494444]
[1763155639449,0.95299876,95002.0,94992.0,0.02494444]
[1763155639648,0.08436,94993.0,94992.0,0.02362]
[1763155639860,0.24694428,94993.0,94992.0,0.001]
[1763155640071,0.56994428,94993.0,94992.0,0.001]
[1763155640276,0.56994428,94993.0,94992.0,0.00232444]
[1763155640539,0.64020214,94993.0,94992.0,0.00132444]
[1763155640964,0.65985355,94993.0,94992.0,0.00132444]
[1763155641169,0.62482936,94993.0,94992.0,0.00132444]
[1763155641372,0.36641874,94989.0,94984.0,0.00013548]
[1763155641579,0.44140874,94985.0,94984.0,0.00013548]
[1763155641797,0.46106015,94985.0,94984.0,0.00013548]
[1763155642425,0.46478246,94985.0,94984.0,0.00013548]
[1763155642851,0.46578246,94985.0,94984.0,0.00013548]
[1763155643072,0.56945184,94985.0,94984.0,0.00013548]
[1763155643588,0.09873,94967.0,94960.0,0.0004]
[1763155643792,0.03432,94961.0,94960.0,0.00053526]
[1763155644001,0.06355255,94961.0,94960.0,0.00053526]
[1763155645057,0.06455255,94961.0,94960.0,0.00053526]
[1763155645272,0.06355255,94961.0,94960.0,0.00053526]
[1763155645514,0.06455255,94961.0,94960.0,0.00053526]
[1763155645717,0.06555255,94961.0,94960.0,0.00053526]
[1763155645926,0.0655626,94961.0,94960.0,0.00053526]
[1763155646131,0.05598146,94961.0,94960.0,0.00053526]
[1763155646337,0.05498146,94961.0,94960.0,0.00053526]
[1763155646758,0.05398146,94961.0,94960.0,0.00053526]
[1763155647162,0.05498146,94961.0,94960.0,0.00053526]
[1763155647370,0.43302003,94961.0,94960.0,0.00053526]
[1763155647544,0.43202003,94961.0,94960.0,0.00141874]
[1763155647742,0.43302003,94961.0,94960.0,0.00141874]
[1763155647945,0.43402003,94961.0,94960.0,0.00141874]
[1763155649160,0.47743877,94961.0,94960.0,0.00141874]
[1763155649792,0.37898146,94961.0,94960.0,0.00141874]
[1763155650771,0.46338146,94961.0,94960.0,0.00141874]
[1763155651621,0.5068002,94961.0,94960.0,0.00141874]
[1763155652282,0.43236406,94961.0,94960.0,0.00141874]
[1763155652703,0.36641874,94959.0,94928.0,9e-05]
[1763155652933,0.09797874,94951.0,94950.0,0.00054231]
[1763155653145,0.4406402,94951.0,94950.0,0.00054231]
[1763155653359,0.45067944,94951.0,94950.0,0.00054231]
[1763155653564,0.323,94919.0,94910.0,0.0216449]
[1763155653768,0.10569428,94913.0,94910.0,0.01712055]
[1763155654190,0.10569428,94913.0,94910.0,0.00047565]
[1763155654400,0.12851819,94913.0,94910.0,0.00047565]
[1763155654609,0.10569428,94918.0,94910.0,0.00047565]
[1763155655377,0.01652996,94917.0,94910.0,0.00047565]
[1763155655586,0.10569428,94915.0,94910.0,0.00047565]
[1763155655807,0.05456,94911.0,94910.0,0.00047565]
[1763155656015,0.05456,94911.0,94910.0,0.00147565]
[1763155656471,0.05456,94911.0,94910.0,0.00047565]
[1763155656675,0.07415319,94911.0,94910.0,0.00047565]
[1763155658242,0.44057193,94911.0,94910.0,0.00047565]
[1763155658441,0.44057193,94911.0,94910.0,0.00098613]
[1763155658442,0.52570885,94911.0,94910.0,0.00098613]
[1763155660820,0.61014885,94911.0,94910.0,0.00098613]
[1763155661818,0.52570885,94911.0,94910.0,0.00098613]
[1763155662039,0.61014885,94911.0,94910.0,0.00098613]
[1763155662436,0.52570885,94911.0,94910.0,0.00098613]
[1763155663532,0.0651,94901.0,94900.0,0.00018246]
[1763155663778,0.06555059,94901.0,94900.0,0.00018246]
[1763155663982,0.45153727,94901.0,94900.0,0.00018246]
[1763155664186,0.45576181,94901.0,94900.0,0.00018246]
[1763155665398,0.45676181,94901.0,94900.0,0.00018246]
[1763155665606,0.50143799,94901.0,94900.0,0.00018246]
[1763155666972,0.50243799,94901.0,94900.0,0.00018246]
[1763155667185,0.50143799,94901.0,94900.0,0.00018246]
[1763155667607,0.50243799,94901.0,94900.0,0.00018246]
[1763155668209,0.51797834,94901.0,94900.0,0.00018246]
[1763155668646,0.51997834,94901.0,94900.0,0.00018246]
[1763155669069,0.53551909,94901.0,94900.0,0.00018246]
[1763155669476,0.53651909,94901.0,94900.0,0.00018246]
[1763155669892,0.53551909,94901.0,94900.0,0.00018246]
[1763155670312,0.44742417,94901.0,94900.0,0.00018246]
[1763155670722,0.53186417,94901.0,94900.0,0.00018246]
[1763155670942,0.51532342,94901.0,94900.0,0.00018246]
[1763155671206,0.323,94889.0,94876.0,0.07964246]
[1763155671411,0.10569428,94877.0,94875.0,0.02341]
[1763155672455,0.02221548,94901.0,94875.0,0.02341]
[1763155672677,0.01799094,94901.0,94900.0,0.08983]
[1763155672893,0.10569428,94889.0,94875.0,0.02341]
[1763155673098,1.30172724,94885.0,94875.0,0.02341]
[1763155673311,0.34262584,94884.0,94875.0,0.02441]
[1763155673527,0.01962584,94883.0,94875.0,0.0233267]
[1763155674145,0.01962584,94883.0,94875.0,0.001]
[1763155674349,0.2,94880.0,94870.0,0.0004]
[1763155674552,0.10569428,94873.0,94870.0,0.0004]
[1763155676211,0.01653959,94873.0,94870.0,0.0014]
[1763155676364,0.323,94881.0,94870.0,0.0014]
[1763155676566,0.10569428,94874.0,94870.0,0.0014]
[1763155677318,0.10569428,94874.0,94870.0,0.0004]
[1763155677680,0.10569428,94874.0,94870.0,0.0014]
[1763155678276,0.323,94884.0,94879.0,0.05701]
[1763155678507,0.0196723,94883.0,94879.0,0.05701]
[1763155678712,0.0196723,94882.0,94880.0,0.02857]
[1763155678909,0.0196723,94881.0,94880.0,0.02857]
[1763155679310,0.0196723,94881.0,94879.0,0.02857]
[1763155679525,0.0196723,94880.0,94879.0,0.02857]
[1763155679844,0.0196723,94882.0,94879.0,0.02857]
[1763155680045,0.0196723,94881.0,94879.0,0.02857]
[1763155680292,0.0196723,94880.0,94879.0,0.02857]
[1763155681147,0.0196723,94882.0,94879.0,0.02857]
[1763155681345,0.0196723,94881.0,94879.0,0.02857]
[1763155681549,0.0196723,94880.0,94879.0,0.02857]
[1763155681746,0.0196723,94880.0,94879.0,0.02957]
[1763155682210,0.0196723,94880.0,94870.0,0.0004]
[1763155682211,0.323,94871.0,94870.0,0.0004]
[1763155682412,0.3426723,94871.0,94870.0,0.0004]
[1763155683242,0.0196723,94871.0,94870.0,0.0004]
[1763155683469,0.0196723,94871.0,94864.0,0.0743]
[1763155683470,0.0196723,94871.0,94864.0,0.07378649]
[1763155683672,0.323,94866.0,94859.0,0.02341]
[1763155683845,0.06452247,94865.0,94859.0,0.02341]
[1763155684057,0.0196723,94864.0,94859.0,0.02341]
[1763155684263,0.0196723,94863.0,94859.0,0.02341]
[1763155684474,0.0196723,94862.0,94859.0,0.02341]
[1763155684686,0.10525896,94861.0,94845.0,0.05020109]
[1763155684885,0.10525896,94861.0,94845.0,0.02233]
[1763155685292,0.16180896,94861.0,94845.0,0.02233]
[1763155685486,0.16180896,94861.0,94860.0,0.0014]
[1763155685716,0.0196723,94861.0,94860.0,0.0014]
[1763155686301,0.0762223,94861.0,94860.0,0.0014]
[1763155686912,0.21703755,94866.0,94860.0,0.0014]
[1763155687118,0.21703755,94866.0,94860.0,0.0004]
[1763155689001,0.01654537,94865.0,94860.0,0.0004]
[1763155690507,0.4,94860.0,94851.0,0.00739649]
[1763155690700,0.10569428,94852.0,94851.0,0.00739649]
[1763155691967,0.323,94859.0,94852.0,0.08724]
[1763155692173,0.00013513,94871.0,94860.0,0.05367]
[1763155692317,0.00013513,94871.0,94853.0,0.02108525]
[1763155692318,0.00013513,94871.0,94870.0,0.09355]
[1763155692697,0.00013513,94871.0,94870.0,0.03988]
[1763155694256,0.01654074,94887.0,94879.0,0.09659]
[1763155694663,0.01654074,94887.0,94880.0,0.08724]
[1763155695912,0.01654074,94887.0,94880.0,0.08824]
[1763155697099,0.01654074,94887.0,94880.0,0.08924]
[1763155697505,0.01654074,94887.0,94882.0,0.02814243]
[1763155697712,0.01654074,94887.0,94884.0,0.02814243]
[1763155697910,0.93530362,94900.0,94880.0,0.08924]
[1763155697911,0.93530362,94900.0,94886.0,0.02814243]
[1763155698096,0.73530362,94900.0,94899.0,0.03087]
[1763155698319,0.08444,94900.0,94899.0,0.03087]
[1763155699918,0.09453787,94900.0,94899.0,0.03087]
[1763155700191,0.67545787,94900.0,94886.0,0.0004864]
[1763155700396,0.10569428,94887.0,94886.0,0.0004864]
[1763155701310,0.42869428,94887.0,94886.0,0.0004864]
[1763155701915,0.47578871,94887.0,94886.0,0.0004864]
[1763155702037,0.49550803,94887.0,94886.0,0.0004864]
[1763155702525,0.53892677,94887.0,94886.0,0.0004864]
[1763155702847,0.49183234,94887.0,94886.0,0.0004864]
[1763155703043,0.50837511,94887.0,94886.0,0.0004864]
[1763155703671,0.50837511,94887.0,94851.0,0.02814243]
[1763155703884,0.04225,94852.0,94851.0,0.00017464]
[1763155704308,0.323,94859.0,94851.0,0.00017464]
[1763155705169,0.323,94859.0,94851.0,0.00117464]
[1763155705457,0.323,94859.0,94851.0,0.00017464]
[1763155707440,0.08448,94858.0,94851.0,0.00017464]
[1763155707841,0.323,94857.0,94851.0,0.00017464]
[1763155708714,0.323,94857.0,94852.0,0.04029]
[1763155709112,0.08448,94858.0,94852.0,0.04029]
[1763155709370,0.08448,94857.0,94852.0,0.04029]
[1763155710532,0.08448,94857.0,94851.0,0.00017464]
[1763155710739,0.05343,94852.0,94851.0,0.00017464]
[1763155712183,0.33954549,94855.0,94851.0,0.00017464]
[1763155712375,0.01654549,94855.0,94851.0,0.04046464]
[1763155712532,0.01654549,94855.0,94851.0,0.04146464]
[1763155712928,0.08448,94854.0,94851.0,0.04146464]
[1763155713547,0.08448,94854.0,94851.0,0.04246464]
[1763155713761,0.323,94849.0,94840.0,0.0004]
[1763155713957,0.52501428,94841.0,94840.0,0.00054521]
[1763155714440,0.58556171,94841.0,94840.0,0.00054521]
[1763155714864,0.52501428,94841.0,94840.0,0.00054521]
[1763155715595,0.60949428,94841.0,94840.0,0.00054521]
[1763155716224,0.55606428,94841.0,94840.0,0.00054521]
[1763155716983,0.51317428,94841.0,94840.0,0.00054521]
[1763155717198,0.42869428,94841.0,94840.0,0.00054521]
[1763155717395,0.51317428,94841.0,94840.0,0.00054521]
[1763155717598,0.19017428,94841.0,94840.0,0.00054521]
[1763155720248,0.26262171,94841.0,94840.0,0.00054521]
[1763155720444,0.27916947,94841.0,94840.0,0.00054521]
[1763155721906,0.26115204,94841.0,94840.0,0.00054521]
[1763155722298,0.27770064,94841.0,94840.0,0.00054521]
[1763155722693,0.26115204,94841.0,94840.0,0.00054521]
[1763155723126,0.22009078,94841.0,94840.0,0.00054521]
[1763155723933,0.54309078,94841.0,94840.0,0.00054521]
[1763155724134,0.59739986,94841.0,94840.0,0.00054521]
[1763155724920,0.54309078,94841.0,94840.0,0.00054521]
[1763155725128,0.55964071,94841.0,94840.0,0.00054521]
[1763155725328,0.78641872,94840.0,94830.0,0.0004]
[1763155725550,0.78641872,94840.0,94830.0,0.00054586]
[1763155725551,0.08630874,94831.0,94830.0,0.00054586]
[1763155725755,0.45023961,94831.0,94830.0,0.00054586]
[1763155725959,0.40930874,94831.0,94830.0,0.00054586]
[1763155727344,0.41030874,94831.0,94830.0,0.00054586]
[1763155727555,0.41130874,94831.0,94830.0,0.00054586]
[1763155728652,0.41130874,94831.0,94830.0,0.01304655]
[1763155728874,0.41130874,94831.0,94783.0,0.02814243]
[1763155728875,0.323,94806.0,94783.0,0.02814243]
[1763155729067,0.323,94806.0,94801.0,0.00977211]
[1763155729225,0.323,94806.0,94802.0,0.00977211]
[1763155729435,0.31612609,94806.0,94803.0,0.00977211]
[1763155729634,0.31612609,94806.0,94804.0,0.00977211]
[1763155729802,0.31612609,94806.0,94805.0,0.00977211]
[1763155730914,0.40064609,94806.0,94805.0,0.00977211]
[1763155732877,0.50319524,94806.0,94800.0,0.01313613]
[1763155733078,0.08452,94805.0,94800.0,0.01313613]
[1763155733276,0.31612609,94806.0,94800.0,0.01313613]
[1763155733630,0.0165524,94804.0,94800.0,0.09693613]
[1763155735484,0.0165524,94804.0,94800.0,0.01313613]
[1763155736517,0.08452,94803.0,94800.0,0.01313613]
[1763155737750,0.1031231,94803.0,94800.0,0.01313613]
[1763155738050,0.08452,94802.0,94800.0,0.01313613]
[1763155738253,0.0165524,94804.0,94801.0,0.0838]
[1763155738381,0.36589,94801.0,94800.0,0.01313613]
[1763155738593,0.323,94801.0,94800.0,0.01313613]
[1763155739222,0.0165524,94804.0,94800.0,0.01313613]
[1763155739223,0.0165524,94804.0,94801.0,0.0838]
[1763155739435,0.19021428,94803.0,94801.0,0.0838]
[1763155740455,0.23254612,94803.0,94800.0,0.01313613]
[1763155740652,0.19021428,94803.0,94800.0,0.01313613]
[1763155743420,0.08452,94803.0,94800.0,0.01313613]
[1763155743621,0.10569428,94802.0,94801.0,0.07844]
[1763155743816,0.19021428,94802.0,94801.0,0.07844]
[1763155744638,0.19021428,94802.0,94800.0,0.01313613]
[1763155745046,0.19021428,94802.0,94801.0,0.00977775]
[1763155746972,0.20676836,94802.0,94801.0,0.00977775]
[1763155747424,0.19021428,94802.0,94801.0,0.00977775]
[1763155751375,0.08452,94802.0,94801.0,0.00977775]
[1763155751794,0.10107392,94802.0,94801.0,0.00977775]
[1763155752479,0.01655392,94802.0,94801.0,0.00977775]
[1763155752680,0.10107392,94802.0,94801.0,0.00977775]
[1763155753174,0.01655392,94802.0,94801.0,0.00977775]
[1763155753379,0.10107392,94802.0,94801.0,0.00977775]
[1763155754207,0.01655392,94802.0,94801.0,0.00977775]
[1763155754414,0.10107392,94802.0,94801.0,0.00977775]
[1763155756189,0.08452,94802.0,94801.0,0.00977775]
[1763155757208,0.08452,94802.0,94801.0,0.01077775]
[1763155757616,0.323,94821.0,94810.0,0.08855]
[1763155757838,0.323,94821.0,94820.0,0.05384]
[1763155758010,0.40752,94821.0,94820.0,0.06361775]
[1763155759217,0.42407102,94821.0,94820.0,0.06361775]
[1763155760847,0.44062212,94821.0,94820.0,0.06361775]
[1763155761646,0.44062212,94821.0,94820.0,0.14708775]
[1763155762499,0.44062212,94821.0,94820.0,0.06361775]
[1763155762735,0.11762212,94821.0,94820.0,0.00977775]
[1763155763143,0.1073151,94821.0,94820.0,0.00977775]
[1763155763357,0.1010711,94821.0,94820.0,0.00977775]
[1763155763561,0.1010711,94821.0,94820.0,0.01077775]
[1763155764190,0.0165511,94821.0,94820.0,0.01077775]
[1763155764396,0.1010711,94821.0,94820.0,0.01077775]
[1763155765629,0.1010711,94821.0,94820.0,0.00977775]
[1763155766029,0.1010711,94821.0,94820.0,0.01077775]
[1763155766681,0.1010711,94821.0,94820.0,0.00977775]
[1763155766874,0.1010711,94821.0,94820.0,0.01077775]
[1763155768789,0.1010711,94821.0,94820.0,0.04705769]
[1763155769013,0.1010711,94821.0,94820.0,0.04805769]
[1763155769246,0.1010711,94821.0,94820.0,0.01077775]
[1763155769661,0.0165511,94821.0,94820.0,0.03187034]
[1763155769901,0.1010711,94821.0,94820.0,0.03187034]
[1763155770097,0.0165511,94821.0,94820.0,0.03187034]
[1763155770596,0.08452,94821.0,94820.0,0.03187034]
[1763155771426,0.08452,94821.0,94820.0,0.01077775]
[1763155772427,0.08452,94821.0,94820.0,0.00977775]
[1763155772830,0.08452,94821.0,94820.0,0.01077775]
[1763155773244,0.08452,94821.0,94820.0,0.01177775]
[1763155774067,0.08452,94821.0,94820.0,0.01077775]
[1763155775250,0.40752,94821.0,94820.0,0.00977775]
[1763155776621,0.08452,94821.0,94820.0,0.00977775]
[1763155779270,0.323,94827.0,94820.0,0.00977775]
[1763155779478,0.323,94827.0,94816.0,0.07883]
[1763155779479,0.08452,94821.0,94816.0,0.07883]
[1763155779709,0.08452,94821.0,94817.0,0.00978564]
[1763155779911,0.08452,94821.0,94818.0,0.00978564]
[1763155780183,0.08452,94821.0,94819.0,0.00978564]
[1763155780395,0.08452,94820.0,94815.0,0.02282]
[1763155780595,0.08452,94820.0,94816.0,0.00978764]
[1763155780821,0.08452,94820.0,94817.0,0.00978764]
[1763155781002,0.08452,94820.0,94818.0,0.00978764]
[1763155781202,0.08452,94820.0,94819.0,0.00978764]
[1763155782456,0.323,94827.0,94820.0,0.07883]
[1763155782693,0.08452,94826.0,94821.0,0.00978764]
[1763155782891,0.08452,94826.0,94822.0,0.00978764]
[1763155783106,0.08452,94826.0,94823.0,0.00978764]
[1763155783319,0.08452,94826.0,94824.0,0.00978764]
[1763155783527,0.08452,94826.0,94825.0,0.00978764]
[1763155788649,0.10569428,94828.0,94825.0,0.00978764]
[1763155788854,0.08452,94827.0,94826.0,0.00978764]
[1763155789845,0.08452,94829.0,94826.0,0.00978764]
[1763155790046,0.08452,94828.0,94827.0,0.00978764]
[1763155790606,0.08452,94828.0,94827.0,0.08861764]
[1763155793040,0.10106953,94828.0,94827.0,0.08861764]
[1763155794936,0.01654953,94828.0,94827.0,0.08961764]
[1763155795152,0.10106953,94828.0,94827.0,0.08961764]
[1763155795369,0.08452,94828.0,94827.0,0.08961764]
[1763155797306,0.08452,94828.0,94827.0,0.10211833]
[1763155797775,0.08452,94828.0,94827.0,0.02328833]
[1763155800755,0.01654865,94828.0,94827.0,0.02328833]
[1763155800985,0.10106865,94828.0,94827.0,0.02328833]
[1763155801393,0.01654865,94828.0,94827.0,0.02328833]
[1763155801556,0.10106865,94828.0,94827.0,0.02328833]
[1763155802382,0.01654865,94828.0,94827.0,0.02328833]
[1763155802741,0.10106865,94828.0,94827.0,0.02328833]
[1763155802878,0.08452,94828.0,94827.0,0.02328833]
[1763155803891,0.08452,94828.0,94827.0,0.0609547]
[1763155804155,0.08452,94828.0,94827.0,0.02328833]
[1763155805150,0.13068,94828.0,94827.0,0.02228833]
[1763155805547,0.08452,94828.0,94827.0,0.02228833]
[1763155806119,0.10107008,94828.0,94827.0,0.02228833]
[1763155806538,0.08452,94828.0,94827.0,0.02228833]
[1763155807227,0.16512,94828.0,94827.0,0.02228833]
[1763155807440,0.185512,94828.0,94827.0,0.02228833]
[1763155807660,0.508512,94828.0,94827.0,0.02228833]
[1763155807894,0.35142,94828.0,94827.0,0.02228833]
[1763155808102,0.11294,94828.0,94827.0,0.10113833]
[1763155808717,0.08452,94828.0,94827.0,0.02228833]
[1763155809852,0.10106914,94828.0,94827.0,0.02228833]
[1763155810009,0.10106914,94828.0,94827.0,0.02328833]
[1763155811004,0.03309848,94828.0,94827.0,0.02328833]
[1763155811227,0.11761848,94828.0,94827.0,0.02228833]
[1763155811631,0.11761848,94828.0,94827.0,0.02231206]
[1763155812340,0.11761848,94828.0,94827.0,0.1264947]
[1763155812682,0.11761848,94828.0,94827.0,0.0505647]
[1763155813886,0.11761848,94828.0,94827.0,0.02231206]
[1763155814316,0.17200848,94828.0,94827.0,0.02231206]
[1763155815596,0.11761848,94828.0,94827.0,0.02231206]
[1763155815844,0.17200848,94828.0,94827.0,0.02231206]
[1763155816933,0.27770276,94828.0,94827.0,0.02231206]
[1763155817815,0.46179276,94828.0,94827.0,0.01250069]
[1763155818026,0.46279276,94828.0,94827.0,0.02232572]
[1763155819558,0.46179276,94828.0,94827.0,0.02232572]
[1763155819789,0.46179276,94828.0,94827.0,0.09825572]
[1763155819790,0.03309848,94828.0,94827.0,0.09825572]
[1763155820002,0.01654934,94828.0,94827.0,0.09825572]
[1763155820213,0.60258731,94840.0,94836.0,0.07522]
[1763155820421,0.02842,94840.0,94837.0,0.03807909]
[1763155820632,0.02842,94840.0,94838.0,0.03807909]
[1763155820852,0.07783,94857.0,94839.0,0.00982503]
[1763155821086,0.65868731,94848.0,94845.0,0.05127]
[1763155821292,0.03169141,94846.0,94845.0,0.05127]
[1763155821493,0.08452,94846.0,94845.0,0.00995443]
[1763155822267,0.57416731,94855.0,94845.0,0.00995443]
[1763155822268,0.57416731,94855.0,94854.0,0.05127]
[1763155822506,0.57416731,94855.0,94854.0,0.08983899]
[1763155822507,0.40752,94855.0,94854.0,0.08983899]
[1763155822707,0.57416731,94864.0,94854.0,0.08983899]
[1763155822907,0.08452,94863.0,94855.0,0.00980899]
[1763155823111,0.4392087,94863.0,94856.0,0.00980899]
[1763155823337,0.35609295,94862.0,94857.0,0.00980899]
[1763155823510,0.35609295,94862.0,94858.0,0.00980899]
[1763155823706,0.40752,94861.0,94859.0,0.00980899]
[1763155823910,0.40752,94861.0,94860.0,0.00980899]
[1763155824364,0.323,94861.0,94860.0,0.00980899]
[1763155824531,0.40752,94861.0,94860.0,0.00980899]
[1763155825362,0.20924059,94861.0,94860.0,0.00980899]
[1763155826323,0.13891,94861.0,94860.0,0.00980899]
[1763155826584,0.10569428,94846.0,94838.0,0.02876]
[1763155826786,0.16870428,94846.0,94836.0,0.02395]
[1763155827031,0.16870428,94846.0,94832.0,0.02825406]
[1763155827423,0.16870428,94846.0,94831.0,0.02825406]
[1763155827633,0.16870428,94846.0,94829.0,0.02395]
[1763155827634,0.10569428,94846.0,94840.0,0.02637]
[1763155827838,0.19021428,94846.0,94845.0,0.07607544]
[1763155827966,0.19021428,94846.0,94845.0,0.00014544]
[1763155828415,0.10569428,94846.0,94845.0,0.00014544]
[1763155828746,0.19021428,94846.0,94845.0,0.00014544]
[1763155829758,0.22190663,94846.0,94845.0,0.00014544]
[1763155829914,0.15640806,94846.0,94845.0,0.00014544]
[1763155830109,0.24092806,94846.0,94845.0,0.00014544]
[1763155830323,0.15640806,94846.0,94845.0,0.00014544]